bitfinex-derivatives/quotes_ETHF0:USTF0_20250902
["timestamp","ask_amount","ask_price","bid_price","bid_amount"]
[1756823405395,3.2078,4369.8,4368.9,0.7734]
[1756823405700,3.4548,4370.5,4369.5,0.7734]
[1756823406002,3.4548,4370.5,4369.9,3.2078]
[1756823406192,3.4548,4370.5,4370.0,0.7734]
[1756823406193,0.247,4370.5,4370.0,0.7734]
[1756823406595,0.247,4370.5,4369.9,3.2078]
[1756823406993,0.247,4370.5,4370.0,0.7734]
[1756823407195,0.247,4370.5,4370.0,0.3145]
[1756823407396,0.247,4370.5,4369.9,4.2282]
[1756823408098,0.247,4370.5,4369.9,3.9812]
[1756823408294,0.247,4370.5,4369.9,3.4548]
[1756823408494,32.945,4371.4,4370.1,0.7734]
[1756823408495,0.247,4371.3,4370.1,0.7734]
[1756823408697,0.247,4371.3,4370.0,0.3145]
[1756823409001,0.7584,4371.1,4370.0,0.7676]
[1756823409204,0.8727,4370.6,4369.9,3.2078]
[1756823409395,0.7584,4370.2,4369.5,0.7676]
[1756823410095,4.22884001,4370.1,4369.0,3.2078]
[1756823410297,3.2078,4369.3,4367.8,3.2078]
[1756823410500,3.2078,4368.0,4367.1,3.2078]
[1756823410695,3.2078,4368.0,4366.8,0.7676]
[1756823410696,3.2078,4367.3,4366.8,0.7676]
[1756823410894,0.247,4367.2,4366.3,3.2078]
[1756823411298,0.247,4367.2,4366.4,40.8]
[1756823411805,0.247,4367.2,4366.3,3.2078]
[1756823412305,3.2078,4367.7,4366.3,44.0078]
[1756823412501,0.43028146,4367.6,4366.6,0.7676]
[1756823412703,3.9662,4368.2,4366.9,0.7676]
[1756823412893,0.247,4368.1,4366.9,0.7676]
[1756823413096,0.247,4368.1,4366.8,3.2078]
[1756823413304,3.2078,4367.3,4365.8,3.2078]
[1756823413607,3.2078,4367.3,4365.9,0.7676]
[1756823413608,3.2078,4366.5,4365.9,0.7676]
[1756823413999,0.247,4366.6,4365.9,0.7676]
[1756823414203,3.2078,4367.2,4366.0,0.2856]
[1756823414402,0.247,4367.1,4366.1,0.7676]
[1756823414899,3.2078,4367.2,4366.2,0.247]
[1756823415106,32.959,4367.6,4366.6,0.7676]
[1756823415305,3.2078,4367.7,4366.9,0.7676]
[1756823415501,3.2078,4367.7,4367.1,0.7676]
[1756823416904,3.2078,4367.7,4366.3,0.7676]
[1756823416905,0.7584,4367.6,4366.3,0.7676]
[1756823417306,3.2078,4367.2,4366.3,0.7676]
[1756823417615,0.7584,4367.6,4366.3,0.7676]
[1756823417912,0.247,4367.5,4366.5,1.0532]
[1756823418101,0.247,4367.5,4366.6,0.7676]
[1756823418304,3.2078,4367.2,4366.6,0.7676]
[1756823418503,3.2078,4367.2,4366.6,1.0146]
[1756823418811,3.2078,4367.2,4366.6,0.7676]
[1756823419315,0.41551917,4369.0,4366.7,0.247]
[1756823419316,3.2078,4368.0,4366.7,0.247]
[1756823419500,3.4548,4368.0,4366.8,0.7676]
[1756823419702,0.7584,4367.9,4366.8,0.7676]
[1756823420407,0.7584,4367.9,4366.9,3.2078]
[1756823420602,0.7584,4368.5,4367.0,0.2856]
[1756823420806,3.9662,4368.5,4367.1,1.0146]
[1756823421004,3.9662,4368.5,4367.4,3.2078]
[1756823421005,0.7584,4368.5,4367.4,3.2078]
[1756823421301,3.2078,4368.3,4367.5,0.7676]
[1756823421511,3.2078,4368.2,4367.5,1.0532]
[1756823421703,3.2078,4368.4,4367.5,0.7676]
[1756823422207,3.9662,4367.9,4367.2,40.8]
[1756823422406,3.9662,4367.9,4366.9,3.9754]
[1756823422407,3.2078,4367.9,4367.0,1.0532]
[1756823422613,3.2078,4367.9,4367.1,0.7676]
[1756823422812,3.2078,4367.9,4367.2,0.7676]
[1756823423117,3.4548,4368.7,4367.5,0.2856]
[1756823423413,3.4548,4368.7,4367.6,0.7676]
[1756823423814,3.2078,4368.7,4367.6,0.7676]
[1756823424211,3.2078,4368.7,4367.8,0.7676]
[1756823425421,0.247,4369.0,4367.1,40.8]
[1756823425422,0.7584,4368.1,4367.3,0.7676]
[1756823425610,0.247,4368.0,4367.3,0.7676]
[1756823427815,0.1143,4367.9,4367.5,0.2856]
[1756823428317,0.1143,4367.9,4367.6,0.7676]
[1756823428519,0.7584,4367.8,4367.1,0.247]
[1756823428714,0.7584,4367.8,4367.2,0.7676]
[1756823428915,0.1143,4367.9,4367.2,0.7676]
[1756823429516,1.30821394,4367.8,4367.0,40.8]
[1756823429716,1.30821394,4367.8,4366.9,3.2078]
[1756823429717,0.5498193,4367.7,4366.9,3.2078]
[1756823429912,0.7584,4367.8,4366.9,3.2078]
[1756823430111,0.54981873,4367.7,4367.0,0.7676]
[1756823430311,0.7584,4367.8,4367.0,0.7676]
[1756823430512,0.54988886,4367.7,4367.0,0.7676]
[1756823430722,0.7584,4367.8,4367.0,0.7676]
[1756823430921,0.1143,4367.9,4367.6,0.7676]
[1756823431118,0.1143,4367.9,4367.5,0.2856]
[1756823431517,0.1143,4367.9,4367.6,0.7676]
[1756823431719,0.1143,4367.9,4367.5,0.5326]
[1756823432021,0.1143,4367.9,4367.6,0.7676]
[1756823432320,3.2078,4368.3,4367.4,3.2078]
[1756823432520,0.7584,4367.8,4367.0,0.7676]
[1756823432724,0.5507402,4367.7,4367.0,0.7676]
[1756823433223,0.5507402,4367.7,4367.0,1.0146]
[1756823433524,0.5507402,4367.7,4367.0,0.7676]
[1756823433726,0.5507402,4367.7,4367.0,1.0146]
[1756823434221,3.9662,4367.4,4366.6,0.247]
[1756823434424,0.5507402,4367.3,4366.6,41.047]
[1756823435018,0.5507402,4367.3,4366.0,0.2856]
[1756823435019,3.2078,4366.9,4366.0,0.7676]
[1756823435212,0.7584,4366.7,4365.8,3.2078]
[1756823435412,3.2078,4366.4,4365.8,3.2078]
[1756823435618,0.5509295,4366.3,4365.9,0.7676]
[1756823435819,0.5509295,4366.2,4365.9,0.7676]
[1756823436016,0.5509295,4366.1,4365.8,3.2078]
[1756823436220,3.4548,4367.0,4366.1,0.7676]
[1756823436520,0.7584,4366.8,4365.8,3.4548]
[1756823436822,0.55106339,4366.7,4365.8,3.2078]
[1756823437017,3.2078,4366.4,4365.8,3.2078]
[1756823437226,1.30946339,4366.3,4365.9,0.7676]
[1756823437425,0.55106339,4366.2,4365.9,0.7676]
[1756823437623,0.55106339,4366.1,4365.9,0.7676]
[1756823437828,0.55106339,4366.0,4365.9,0.7676]
[1756823438026,0.55106339,4366.3,4365.9,0.7676]
[1756823438529,0.55106339,4366.3,4365.8,3.2078]
[1756823439024,0.55106339,4366.3,4366.0,0.2994]
[1756823439230,0.55106339,4366.2,4366.1,0.748]
[1756823439430,0.55106339,4366.8,4366.1,0.748]
[1756823439632,0.55106339,4366.7,4366.1,0.748]
[1756823439827,0.55106339,4366.6,4366.0,0.2994]
[1756823440031,0.55106339,4366.5,4366.2,0.748]
[1756823440234,0.55106339,4366.4,4366.2,0.748]
[1756823440534,1.29796339,4366.3,4365.9,0.748]
[1756823440735,0.55106339,4366.2,4365.9,0.748]
[1756823441435,0.55106339,4366.1,4365.8,3.2078]
[1756823441631,0.55106339,4366.0,4365.9,0.748]
[1756823441827,0.55829004,4366.7,4365.9,0.97702]
[1756823442029,0.55829004,4366.6,4366.4,0.748]
[1756823442223,0.247,4367.5,4366.5,0.748]
[1756823442429,0.7469,4367.4,4366.5,0.748]
[1756823442632,0.7469,4367.4,4366.6,40.8]
[1756823442935,0.247,4367.5,4366.7,0.748]
[1756823443134,1.22812267,4367.9,4366.9,3.9558]
[1756823443433,0.7469,4367.6,4366.7,0.247]
[1756823443933,3.2078,4367.2,4366.6,40.8]
[1756823444124,0.7469,4367.5,4366.6,40.8]
[1756823444329,3.2078,4367.7,4366.7,0.748]
[1756823444725,3.2078,4367.7,4366.9,3.9558]
[1756823444932,3.2078,4367.7,4366.9,4.2028]
[1756823445435,3.2078,4367.7,4367.0,0.247]
[1756823445829,3.2078,4367.7,4367.1,0.748]
[1756823446029,0.247,4368.0,4367.1,0.748]
[1756823446331,1.22812267,4368.8,4367.5,1.0474]
[1756823446630,3.2078,4370.0,4368.5,0.2994]
[1756823446828,0.7469,4369.9,4369.1,0.748]
[1756823447934,0.7469,4369.3,4368.4,0.748]
[1756823448132,0.9939,4369.3,4368.5,40.8]
[1756823448331,0.7469,4368.6,4368.5,40.8]
[1756823448530,3.9547,4368.6,4368.5,40.8]
[1756823448733,3.2078,4368.6,4368.5,40.8]
[1756823448944,0.247,4369.3,4368.5,41.548]
[1756823449428,0.247,4369.3,4368.5,40.8]
[1756823449629,0.247,4369.3,4368.7,3.2078]
[1756823449826,0.247,4369.8,4368.8,0.748]
[1756823450230,0.247,4369.8,4369.0,0.748]
[1756823450933,4.2017,4370.1,4369.0,0.748]
[1756823451241,0.247,4370.4,4369.0,0.748]
[1756823451438,0.7469,4369.8,4369.1,0.247]
[1756823451642,0.9939,4370.4,4369.2,0.748]
[1756823452233,0.9939,4370.4,4369.3,0.748]
[1756823452234,3.2078,4370.2,4369.3,0.748]
[1756823452440,0.247,4370.6,4369.3,0.748]
[1756823452635,0.247,4370.6,4369.4,0.748]
[1756823452833,3.2078,4370.7,4369.4,0.748]
[1756823453039,3.2078,4370.7,4369.8,0.748]
[1756823453234,0.247,4371.1,4370.0,0.748]
[1756823453744,0.7469,4371.3,4370.2,3.2078]
[1756823454047,0.247,4371.6,4370.4,0.748]
[1756823454249,0.55859336,4371.5,4370.4,0.748]
[1756823454440,0.7469,4371.4,4370.5,0.247]
[1756823454641,0.7469,4371.4,4370.6,0.748]
[1756823454845,1.0487,4371.5,4370.2,3.2078]
[1756823455147,3.2078,4371.1,4370.1,40.8]
[1756823455449,0.7469,4370.4,4370.1,40.8]
[1756823455651,0.7469,4370.9,4370.2,0.748]
[1756823455842,0.7469,4370.9,4370.1,40.8]
[1756823456337,3.2078,4371.0,4370.2,0.748]
[1756823456540,3.2078,4371.0,4370.4,0.748]
[1756823456746,3.2078,4371.0,4370.4,41.548]
[1756823457742,3.2078,4371.0,4370.4,41.795]
[1756823457941,3.2078,4371.0,4370.5,0.748]
[1756823458354,3.2078,4371.0,4370.4,41.795]
[1756823458942,0.7469,4370.9,4370.4,40.8]
[1756823459245,0.7469,4370.8,4370.4,40.8]
[1756823459451,0.7469,4370.8,4370.1,0.247]
[1756823459452,0.7469,4370.9,4370.1,0.247]
[1756823459646,0.9939,4370.9,4370.1,0.995]
[1756823459850,0.9939,4370.9,4370.1,0.748]
[1756823460042,0.9939,4370.9,4370.1,0.995]
[1756823460248,0.247,4370.9,4370.2,0.995]
[1756823460549,0.247,4370.9,4370.3,0.247]
[1756823460949,0.7469,4371.5,4370.4,0.748]
[1756823461151,3.9547,4372.1,4370.7,0.748]
[1756823461349,3.2078,4372.6,4371.3,0.748]
[1756823461555,0.247,4373.0,4371.8,0.748]
[1756823461752,3.2078,4373.2,4372.3,0.748]
[1756823462058,3.9547,4373.7,4372.7,3.2078]
[1756823462356,0.7469,4373.5,4372.7,3.2078]
[1756823463258,0.7469,4373.5,4372.8,0.748]
[1756823463456,0.9939,4373.5,4372.8,0.748]
[1756823464155,0.9939,4373.5,4372.9,40.8]
[1756823464957,0.247,4373.5,4373.2,0.748]
[1756823465154,0.7469,4374.0,4372.8,0.748]
[1756823465457,3.2078,4373.7,4372.8,41.548]
[1756823465653,3.2078,4373.7,4372.8,41.795]
[1756823466053,0.7469,4373.6,4372.8,41.548]
[1756823466854,3.2078,4373.1,4372.8,40.8]
[1756823467158,0.7469,4373.0,4371.8,0.247]
[1756823467351,3.2078,4372.5,4371.7,0.247]
[1756823467546,0.7469,4372.4,4371.8,40.8]
[1756823467953,3.4548,4373.0,4371.9,0.748]
[1756823468162,0.3018,4373.5,4372.2,0.748]
[1756823468163,0.247,4373.2,4372.2,0.748]
[1756823468351,0.247,4373.2,4372.3,0.247]
[1756823468748,0.247,4373.2,4372.4,0.748]
[1756823468956,0.6974,4373.2,4372.4,0.748]
[1756823469154,0.6974,4372.9,4372.4,0.748]
[1756823469353,0.6974,4372.9,4372.1,0.73]
[1756823469559,0.247,4373.1,4372.1,0.73]
[1756823469759,0.6974,4373.0,4372.1,0.73]
[1756823470554,3.2078,4372.7,4371.8,41.047]
[1756823470747,3.2078,4372.7,4371.6,3.2078]
[1756823470748,0.247,4372.6,4371.6,3.9378]
[1756823470951,3.2078,4372.1,4371.3,0.247]
[1756823471157,3.2078,4371.4,4370.3,3.2078]
[1756823471368,3.2078,4371.4,4368.0,0.2949]
[1756823471369,3.2078,4370.8,4369.3,0.73]
[1756823471548,3.2078,4370.2,4369.2,3.2078]
[1756823471856,0.6974,4369.4,4368.2,0.73]
[1756823472154,0.247,4369.3,4368.6,3.9378]
[1756823472459,0.9444,4369.4,4368.6,3.9378]
[1756823472760,0.247,4369.4,4368.7,0.73]
[1756823473457,0.247,4369.4,4368.6,3.2078]
[1756823473458,0.9444,4369.4,4368.6,3.2078]
[1756823473851,0.6974,4369.4,4368.7,0.73]
[1756823474048,0.247,4369.5,4368.7,0.73]
[1756823474453,3.2078,4370.1,4369.2,0.73]
[1756823476159,3.9052,4370.1,4368.6,3.2078]
[1756823476356,0.247,4370.2,4368.6,3.9378]
[1756823476357,0.6974,4369.5,4368.6,3.9378]
[1756823476552,0.9444,4369.4,4368.6,3.9378]
[1756823477162,0.247,4369.4,4368.6,3.2078]
[1756823477352,0.6974,4369.3,4368.6,3.2078]
[1756823477861,3.2078,4369.6,4368.6,3.2078]
[1756823478059,0.9444,4369.4,4368.7,0.73]
[1756823478361,0.9444,4369.4,4368.6,3.2078]
[1756823478552,0.1143,4370.7,4369.1,3.2078]
[1756823478753,0.1143,4370.7,4368.7,4.22888]
[1756823478754,0.1143,4370.7,4370.4,3.2078]
[1756823478965,0.1143,4370.7,4370.5,0.248]
[1756823479158,0.6974,4371.8,4370.5,41.048]
[1756823479358,0.6974,4371.8,4371.7,3.2078]
[1756823479662,0.6974,4372.4,4371.7,3.2078]
[1756823479960,0.6974,4372.4,4371.8,0.249]
[1756823480264,0.6974,4372.4,4371.7,3.4568]
[1756823480469,0.6974,4372.4,4371.8,0.30684121]
[1756823480667,0.403,4372.5,4371.9,0.30684121]
[1756823480858,0.6974,4372.4,4372.2,3.2078]
[1756823481059,0.403,4372.5,4372.2,3.2078]
[1756823481255,0.1143,4372.5,4372.3,0.3068251]
[1756823481455,0.1143,4372.5,4372.4,0.3068251]
[1756823482069,0.1143,4372.5,4372.4,4.3068251]
[1756823482361,0.6974,4374.5,4372.4,5.4355251]
[1756823482659,0.2887,4376.4,4374.3,3.2078]
[1756823482660,0.6974,4375.1,4374.3,3.2078]
[1756823482870,0.6974,4375.7,4374.8,3.2078]
[1756823483059,0.6974,4375.7,4374.9,0.55566515]
[1756823483259,0.6974,4375.7,4375.0,0.30666515]
[1756823483458,0.6974,4375.7,4374.8,3.2078]
[1756823483661,0.6974,4375.7,4374.9,0.249]
[1756823484258,0.6974,4376.1,4374.9,0.249]
[1756823484665,0.6974,4376.1,4375.3,3.2078]
[1756823484856,3.4568,4376.3,4375.3,3.2078]
[1756823485062,0.2887,4375.7,4375.3,3.2078]
[1756823485458,0.2887,4375.7,4371.3,12.27451179]
[1756823485459,0.6974,4375.6,4375.2,0.249]
[1756823485659,0.2887,4376.4,4375.2,0.249]
[1756823485660,0.6974,4376.2,4375.2,0.249]
[1756823485968,0.6974,4376.2,4375.5,3.2078]
[1756823486166,0.6974,4376.2,4375.6,0.249]
[1756823486361,0.6974,4376.2,4375.7,0.249]
[1756823486660,0.2887,4375.8,4375.3,0.249]
[1756823486860,0.2887,4375.8,4375.2,0.249]
[1756823486861,0.9861,4375.8,4375.2,0.249]
[1756823487266,0.6974,4376.3,4375.5,3.2078]
[1756823487460,0.6974,4376.3,4375.6,0.249]
[1756823487665,3.2078,4377.2,4376.0,3.2078]
[1756823487666,0.9861,4377.0,4376.0,3.2078]
[1756823487866,0.9861,4377.0,4376.5,3.2078]
[1756823487867,0.6974,4376.9,4376.5,3.2078]
[1756823488061,0.2887,4377.0,4376.5,3.2078]
[1756823488262,0.2887,4376.4,4376.2,40.8]
[1756823488563,0.2887,4376.4,4376.2,44.0078]
[1756823488868,0.9861,4376.4,4376.2,40.8]
[1756823489267,0.6974,4376.2,4374.5,3.2078]
[1756823489469,0.6974,4375.5,4374.5,3.2078]
[1756823489666,0.6974,4375.4,4374.6,40.8]
[1756823489970,0.2887,4375.2,4374.7,0.249]
[1756823490267,0.6974,4375.7,4375.0,3.2078]
[1756823490861,0.6974,4375.7,4375.1,0.249]
[1756823491267,0.6974,4375.1,4374.6,40.8]
[1756823491465,0.6974,4374.8,4373.9,3.2078]
[1756823491662,0.2887,4375.8,4373.9,3.2078]
[1756823491663,0.9861,4375.8,4374.4,3.2078]
[1756823491968,0.9861,4375.8,4374.5,41.049]
[1756823492160,0.9861,4375.8,4375.0,3.2078]
[1756823492363,0.9861,4375.8,4375.0,0.249]
[1756823492767,0.9861,4375.8,4375.7,3.2078]
[1756823492969,0.6974,4376.5,4375.7,3.2078]
[1756823493175,0.6974,4376.5,4376.2,3.2078]
[1756823493369,0.6974,4376.5,4376.3,41.049]
[1756823493566,3.2078,4377.3,4376.3,40.8]
[1756823493867,0.6974,4376.9,4376.3,40.8]
[1756823494066,3.2078,4377.3,4376.3,40.8]
[1756823494268,0.9861,4376.4,4376.3,40.8]
[1756823494468,0.6974,4376.9,4376.3,40.8]
[1756823494676,0.6974,4376.9,4376.3,41.049]
[1756823495068,0.6974,4376.9,4376.3,40.8]
[1756823495372,0.6974,4376.9,4376.4,0.249]
[1756823495571,0.6974,4376.9,4376.3,40.8]
[1756823496071,3.2078,4377.3,4376.3,40.8]
[1756823496278,0.9861,4377.0,4376.4,0.249]
[1756823497566,0.9861,4377.0,4376.3,40.8]
[1756823497770,0.2887,4377.0,4376.4,0.249]
[1756823498673,0.6974,4376.4,4376.3,40.8]
[1756823499282,0.7434,4375.9,4375.7,0.248]
[1756823499472,0.7434,4375.9,4375.6,0.248]
[1756823499673,0.2698,4376.0,4375.7,40.8]
[1756823499870,0.7434,4376.2,4375.5,0.248]
[1756823500074,0.7434,4376.0,4375.5,0.248]
[1756823500367,0.2887,4376.5,4375.6,40.8]
[1756823500772,0.2887,4376.5,4375.7,0.248]
[1756823500973,0.7434,4376.4,4375.8,0.248]
[1756823501172,0.2887,4376.5,4375.6,40.8]
[1756823501374,3.9512,4375.7,4375.6,40.8]
[1756823501878,0.2698,4375.5,4375.1,0.248]
[1756823502072,0.2698,4375.5,4374.8,0.248]
[1756823502073,0.7434,4375.4,4374.8,0.248]
[1756823502380,0.7434,4375.4,4374.8,41.048]
[1756823502675,0.2698,4375.0,4374.2,3.2078]
[1756823502877,0.2698,4376.5,4374.9,3.2078]
[1756823503072,0.7434,4376.4,4376.0,3.2078]
[1756823503282,0.2698,4376.0,4375.9,3.2078]
[1756823503476,0.2698,4376.0,4372.9,1.02897]
[1756823503477,0.2698,4375.5,4374.2,0.7375]
[1756823503676,0.2698,4375.5,4374.0,3.2078]
[1756823503677,0.7434,4374.9,4374.0,3.4698]
[1756823504078,0.7434,4374.9,4374.2,0.7375]
[1756823504275,3.2078,4374.3,4372.9,3.2078]
[1756823504578,0.2698,4375.5,4372.9,3.2078]
[1756823504579,0.7434,4373.8,4372.9,3.2078]
[1756823504784,0.7434,4373.8,4373.0,40.8]
[1756823505179,0.7434,4373.8,4373.0,41.062]
[1756823505376,0.7434,4373.8,4373.0,40.8]
[1756823505580,0.262,4374.2,4373.0,40.8]
[1756823505581,0.7434,4374.5,4373.1,0.7375]
[1756823505785,0.7434,4374.5,4373.3,0.7375]
[1756823506082,4.221,4375.0,4373.6,0.7375]
[1756823506288,0.2698,4376.0,4374.1,0.7375]
[1756823506289,3.2078,4375.7,4374.1,0.7375]
[1756823506484,0.7434,4375.6,4374.6,0.7375]
[1756823506785,0.7434,4375.6,4374.7,0.262]
[1756823507081,0.1141,4376.4,4375.5,0.7375]
[1756823507279,0.1141,4376.4,4375.7,0.7375]
[1756823507480,0.1141,4376.4,4375.8,0.261]
[1756823507674,0.1141,4376.4,4376.3,0.7375]
[1756823508381,0.1141,4376.4,4376.3,1.02141708]
[1756823508884,0.7434,4377.9,4376.4,0.6234]
[1756823509088,0.54893348,4377.8,4377.3,3.2078]
[1756823509381,0.54965925,4377.7,4377.5,0.6234]
[1756823509585,3.2078,4378.3,4377.6,0.28413677]
[1756823509777,0.54953824,4378.2,4377.7,0.90753585]
[1756823509978,0.54953824,4378.1,4377.4,0.8844]
[1756823510182,0.54953824,4378.0,4377.6,0.6234]
[1756823510381,0.74544925,4377.9,4377.4,0.8844]
[1756823510587,0.74544925,4377.8,4377.5,0.6234]
[1756823510789,0.19591101,4377.7,4377.5,0.6234]
[1756823511085,0.7434,4377.7,4376.9,0.261]
[1756823511283,0.74608295,4377.6,4376.9,0.261]
[1756823511490,0.74608295,4377.5,4376.9,0.261]
[1756823511683,0.19607149,4377.4,4377.3,0.6234]
[1756823511891,0.19607149,4377.4,4377.3,0.8834]
[1756823512184,0.19615022,4378.1,4377.3,0.26]
[1756823512485,0.7463742,4378.0,4377.3,0.26]
[1756823512686,1.4897742,4377.9,4377.3,0.26]
[1756823512883,0.7463742,4377.8,4377.3,0.26]
[1756823513183,0.7463742,4377.7,4377.2,3.2078]
[1756823513384,0.7434,4377.5,4377.2,3.2078]
[1756823513590,0.93955022,4377.4,4377.2,3.2078]
[1756823513790,0.19615022,4377.3,4377.2,3.2078]
[1756823513982,0.93955022,4377.3,4377.2,3.2078]
[1756823514186,0.93955022,4377.3,4377.0,40.8]
[1756823514380,0.7434,4377.1,4377.0,0.26]
[1756823514590,0.93955022,4377.1,4377.0,0.26]
[1756823515092,1.48987998,4377.1,4377.0,0.26]
[1756823515295,0.7434,4376.9,4376.8,40.8]
[1756823515486,0.74647998,4376.9,4376.8,40.8]
[1756823515688,0.19615022,4376.9,4376.8,40.8]
[1756823515889,0.19615022,4376.9,4376.8,41.4234]
[1756823516089,0.19615022,4376.9,4376.8,41.6824]
[1756823516291,0.19615022,4376.9,4376.8,45.6824]
[1756823516699,0.19615022,4376.9,4376.8,45.4234]
[1756823516891,0.19615022,4376.9,4376.8,41.059]
[1756823517092,0.19615022,4376.9,4376.8,45.6824]
[1756823518191,0.19615022,4376.9,4376.8,45.91524089]
[1756823518390,0.19615022,4376.9,4376.8,40.8]
[1756823518594,0.93955022,4376.9,4376.8,40.8]
[1756823518988,0.93956505,4376.9,4376.8,41.059]
[1756823519195,0.19616505,4376.9,4376.8,41.059]
[1756823519504,0.93956505,4376.9,4376.8,40.8]
[1756823519692,0.93956505,4376.9,4376.8,41.059]
[1756823520000,0.19615712,4376.9,4376.8,41.059]
[1756823520203,0.19615712,4376.9,4376.8,41.6824]
[1756823521395,3.2078,4378.4,4376.8,45.47022]
[1756823521698,3.2078,4378.4,4377.3,0.6234]
[1756823521699,0.74660885,4378.3,4377.3,0.6234]
[1756823521999,0.74660885,4378.2,4377.4,0.258]
[1756823522198,3.2078,4378.4,4377.2,3.2078]
[1756823522199,0.7434,4377.9,4377.5,0.258]
[1756823522397,0.7434,4377.7,4377.5,41.058]
[1756823522597,0.19613166,4377.6,4377.5,41.6814]
[1756823522802,0.93953166,4377.6,4377.5,40.8]
[1756823523298,0.7434,4377.4,4377.2,3.2078]
[1756823523601,0.19613166,4377.3,4377.2,4.076]
[1756823523797,0.19613166,4377.3,4377.2,0.8682]
[1756823524693,3.2078,4378.8,4377.9,0.414]
[1756823524894,3.2078,4378.8,4378.1,3.2078]
[1756823524895,0.55033071,4378.7,4378.1,3.2078]
[1756823525097,3.2078,4378.8,4378.1,3.2078]
[1756823525098,0.55030894,4378.6,4378.2,41.471]
[1756823525298,3.2078,4378.8,4378.2,41.471]
[1756823525703,3.2078,4378.8,4378.2,41.65941723]
[1756823525998,3.2078,4378.8,4378.2,41.471]
[1756823526206,0.17,4378.9,4378.2,40.8]
[1756823526503,0.17,4378.9,4378.8,3.6218]
[1756823526691,0.17,4378.9,4378.8,3.8788]
[1756823526897,0.9134,4378.9,4378.8,3.4648]
[1756823527098,0.9134,4378.9,4378.8,41.057]
[1756823527603,0.17,4378.9,4378.8,41.057]
[1756823527810,0.9134,4378.9,4378.8,40.8]
[1756823528204,0.9134,4378.9,4378.8,41.057]
[1756823528405,0.9134,4378.9,4378.8,40.8]
[1756823528601,4.71936726,4378.9,4378.0,0.257]
[1756823528796,3.2078,4378.4,4378.0,0.257]
[1756823528995,0.54948502,4378.3,4377.6,0.257]
[1756823529202,0.711,4377.7,4377.6,0.257]
[1756823529417,0.711,4378.4,4377.6,0.257]
[1756823529601,0.54952879,4378.3,4377.9,3.2078]
[1756823529806,0.711,4378.7,4378.0,0.6676]
[1756823530001,0.17,4378.9,4378.0,0.6676]
[1756823530202,0.54946968,4378.8,4378.1,0.256]
[1756823530398,0.711,4378.7,4378.2,0.256]
[1756823530708,0.711,4378.7,4377.9,3.2078]
[1756823530904,0.711,4378.7,4377.5,0.4106]
[1756823530905,0.2687,4378.5,4378.0,0.256]
[1756823531299,0.711,4378.4,4378.0,0.256]
[1756823531497,0.711,4378.4,4378.1,40.8]
[1756823531703,0.711,4378.2,4377.4,3.2078]
[1756823531899,3.2078,4378.3,4377.4,3.2078]
[1756823532106,1.26055193,4378.2,4376.9,0.4106]
[1756823532310,0.711,4378.2,4377.6,40.8]
[1756823532507,3.9188,4378.3,4377.7,0.256]
[1756823532706,0.711,4378.8,4378.1,0.4106]
[1756823532910,0.54976427,4378.7,4378.3,0.4106]
[1756823533108,0.711,4378.8,4378.2,0.256]
[1756823533307,0.17,4378.9,4378.2,0.256]
[1756823533308,0.711,4378.6,4378.2,0.256]
[1756823533506,3.2078,4378.8,4377.6,41.2106]
[1756823533706,0.9797,4378.0,4377.6,40.8]
[1756823533911,0.711,4377.9,4377.6,40.8]
[1756823534512,0.711,4377.9,4377.2,0.256]
[1756823534709,0.2687,4378.0,4376.8,3.2078]
[1756823534912,0.711,4377.8,4376.9,40.8]
[1756823535116,0.2687,4377.5,4377.0,0.256]
[1756823535320,0.711,4377.4,4377.0,0.256]
[1756823535518,0.9797,4377.5,4377.0,0.256]
[1756823535814,0.2687,4377.5,4377.0,0.256]
[1756823536009,0.2687,4377.5,4376.3,32.907]
[1756823536010,0.711,4376.9,4375.8,5.0]
[1756823536205,0.2687,4377.0,4375.8,5.0]
[1756823536206,0.711,4375.9,4375.8,5.0]
[1756823536408,0.711,4375.9,4374.7,0.255]
[1756823536409,0.55162405,4375.9,4374.7,3.2078]
[1756823536609,0.711,4375.6,4374.7,3.2078]
[1756823536808,4.20288979,4375.5,4374.7,3.2078]
[1756823537103,0.711,4374.8,4373.9,0.255]
[1756823537308,0.18846574,4374.7,4373.8,3.2078]
[1756823538119,0.18846574,4374.7,4373.9,0.676]
[1756823538120,3.2078,4374.4,4373.9,0.676]
[1756823538412,0.18846574,4374.3,4373.8,3.2078]
[1756823538617,0.18846574,4374.2,4373.9,0.676]
[1756823538911,0.18846574,4374.1,4373.8,3.2078]
[1756823539106,3.2078,4373.9,4373.3,0.676]
[1756823539412,0.18789347,4373.8,4373.2,3.2078]
[1756823539617,3.2078,4373.9,4372.9,0.676]
[1756823539618,0.89889347,4373.7,4372.9,0.676]
[1756823539912,0.711,4373.2,4372.2,0.676]
[1756823540118,0.44289347,4373.1,4372.2,0.676]
[1756823540307,0.18789347,4373.0,4372.2,0.676]